Cogmind - Beta 12 @@@ ROGUE MODE // 2023.10.03 @ 16:27:41 Player: Figgis Result: Self-destructed Performance ------------- Evolutions (1) 500 Regions Visited (3) 600 Robots Destroyed (25) 125 Value Destroyed (529) 529 Prototype IDs (0) 0 Alien Tech Used (0) 0 Bonus (0) 0 TOTAL SCORE: 1754 Bonus ------- None Cogmind --------- Core Integrity 292/400 Matter 300/300 Energy 100/100 System Corruption 6% Temperature Cool (46) Movement Walking (190) Ox1 Location -9/Mines Parts ------- > --- POWER (1) -------- (None) > --- PROPULSION (2) --- Aluminum Leg Improved Aluminum Leg > --- UTILITY (4) ------ Large Storage Unit Sensor Array > --- WEAPON (2) ------- Particle Gun Particle Cannon > --- INVENTORY (15) --- Light Ion Engine Aluminum Leg Aluminum Leg Aluminum Leg Aluminum Leg Improved Heat Sink Medium Matter Pod (100) Sensor Array Medium Laser Light Assault Rifle Peak State ------------ > --- POWER ------------ Light Ion Engine > --- PROPULSION ------- Aluminum Leg Improved Aluminum Leg > --- UTILITY ---------- Large Storage Unit Sensor Array Signal Interpreter > --- WEAPON ----------- Particle Gun Particle Gun > --- INVENTORY -------- Light Ion Engine Aluminum Leg Aluminum Leg Aluminum Leg Aluminum Leg Improved Heat Sink Medium Matter Pod Sensor Array Medium Laser Particle Cannon Light Assault Rifle [Rating: 12] Favorites ----------- Power Light Ion Engine Engine Light Ion Engine Propulsion Aluminum Leg Leg Aluminum Leg Utility Sensor Array Device Sensor Array Storage Large Storage Unit Processor Signal Interpreter Weapon Particle Gun Energy Gun Particle Gun Energy Cannon Particle Cannon Ballistic Gun Light Assault Rifle Build | -11 -10 -9 -9 ------- Run | Jun Mat Mat Min Slots Evolved 2 | . . 2 . Power . | . . . . Propulsion . | . . . . Utility 2 | . . 2 . Weapon . | . . . . Parts Attached 26 | 7 14 3 2 Power 3 | 1 2 . . Engine 3 | 1 2 . . Core . | . . . . Reactor . | . . . . Propulsion 9 | 2 5 1 1 Treads . | . . . . Leg 9 | 2 5 1 1 Wheel . | . . . . Hover . | . . . . Flight . | . . . . Utility 5 | 1 3 1 . Device 2 | . 2 . . Storage 2 | 1 1 . . Processor 1 | . . 1 . Hackware . | . . . . Protection . | . . . . Artifact . | . . . . Weapon 9 | 3 4 1 1 Energy Gun 6 | 2 3 1 . Energy Cannon 1 | . . . 1 Ballistic Gun 2 | 1 1 . . Ballistic Cannon . | . . . . Launcher . | . . . . Special Weapon . | . . . . Impact Weapon . | . . . . Slashing Weapon . | . . . . Piercing Weapon . | . . . . Special Melee Weapon . | . . . . Unidentified Prototypes . | . . . . Parts Lost 8 | . 5 . 3 Power 3 | . 2 . 1 Propulsion 2 | . 2 . . Utility 2 | . 1 . 1 Weapon 1 | . . . 1 Highest Loss Streak 2 | . 2 . 2 To Critical Strikes . | . . . . Average Slot Usage (%) 92 | . 98 87 85 Engine 12 | . 13 11 11 Leg 24 | . 27 21 22 Device 12 | . 13 11 11 Storage 12 | . 14 11 11 Processor 4 | . . 11 8 Energy Gun 21 | . 22 22 20 Ballistic Gun 2 | . 5 . . Naked Turns . | . . . . Heaviest Build 31 | 11 29 30 31 Greatest Support 23 | 20 20 20 23 Greatest Overweight (x) 2 | 1 2 2 1 Average Overweight (x) . | . . 1 1 Largest Inventory Capacity 15 | 8 15 15 15 Average Capacity 11 | 6 8 15 15 Most Carried 11 | 5 8 10 11 Average Carried 8 | 2 7 8 10 Final Capacity 15 | 8 15 15 15 Final Carried 10 | 2 8 10 10 Class Distribution -------------------- 69% | Mutant 30% | Scavenger-Mutant Dominant Class ---------------- Mutant | -10/Materials Scavenger-Mutant | -9/Materials Mutant | -9/Mines Resources | -11 -10 -9 -9 ----------- Run | Jun Mat Mat Min Matter Collected 556 | 177 319 40 20 Remotely . | . . . . Salvage Created 694 | . 426 172 96 Parts 51 | . 31 13 7 Haulers Intercepted . | . . . . Recyclers Shooed 1 | . 1 . . Parts Field Recycled . | . . . . Retrieved Matter . | . . . . Parts Self-Destructed . | . . . . Prevented . | . . . . Kills | -11 -10 -9 -9 ------- Run | Jun Mat Mat Min Combat Hostiles Destroyed 23 | . 10 6 7 Guns 20 | . 10 6 4 Cannons 3 | . . . 3 Classes Destroyed 6 | . 4 1 1 Recycler 1 | . 1 . . Watcher 5 | . 3 2 . Swarmer 10 | . 3 4 3 Grunt 8 | . 7 1 . Sentry 1 | . . 1 . Assembled 4 | . . . 4 Best Kill Streak 6 | . 5 6 4 Combat Bots Only 5 | . 4 5 4 Max Kills in Single Turn 2 | . 1 2 1 Gunslinging 1 | . . 1 . Exploded . | . . . . Melee . | . . . . Uniques/NPCs Destroyed . | . . . . Combat | -11 -10 -9 -9 -------- Run | Jun Mat Mat Min Damage Taken 1083 | . 701 115 267 Core 233 | . 125 41 67 Absorbed by Shields . | . . . . Regen/Repaired (Parts) 52 | . . 52 . Core Remaining (%) 75 | 100 50 . . Volleys Fired 90 | . 56 17 17 Largest 2 | . 2 2 2 Hottest 133 | . 115 130 133 Shots Fired 173 | . 105 34 34 Gun 169 | . 105 34 30 Cannon 4 | . . . 4 Launcher . | . . . . Special . | . . . . Kinetic 26 | . 26 . . Thermal 147 | . 79 34 34 Explosive . | . . . . Electromagnetic . | . . . . Robot Hit Streak 13 | . 13 3 6 Robot Miss Streak 8 | . 4 5 8 Penetration Max . | . . . . Secondary Targets 3 | . 1 2 . Max Gunslinging Chain 1 | . 1 1 . Shots Hit Robots 92 | . 60 16 16 Core Hits 44 | . 27 9 8 Critical Kills . | . . . . Critical Parts Destroyed . | . . . . Critical Strikes 5 | . 3 1 1 Burn 5 | . 3 1 1 Melee Attacks . | . . . . Impact . | . . . . Slashing . | . . . . Piercing . | . . . . Sneak Attacks . | . . . . Combat Hostiles . | . . . . Follow-up Attacks . | . . . . Damage Inflicted 1290 | . 762 265 263 Guns 1218 | . 752 265 201 Cannons 62 | . . . 62 Explosions . | . . . . Melee . | . . . . Ramming 10 | . 10 . . Kinetic 111 | . 111 . . Thermal 1169 | . 641 265 263 Explosive . | . . . . Electromagnetic . | . . . . Impact . | . . . . Slashing . | . . . . Piercing . | . . . . Highest Corruption 6 | . . 1 6 Average Corruption 1 | . . 1 2 Corruption Purged . | . . . . Corruption Blocked . | . . . . Effects 6 | . . . 6 Message Errors 1 | . . . 1 Heat Flow Errors 2 | . . . 2 Energy Discharges 1 | . . . 1 Data Loss (major) 1 | . . . 1 Alerts 1 | . . . 1 Overload Shots . | . . . . Overflow Damage . | . . . . Projectiles . | . . . . Explosions . | . . . . Melee . | . . . . Knockbacks . | . . . . Impact . | . . . . Kinetic . | . . . . Secondary . | . . . . Self-Inflicted Damage . | . . . . Shots . | . . . . Rammed . | . . . . Targets Rammed 1 | . 1 . . Kicked 1 | . 1 . . Crushed . | . . . . Highest Temperature 499 | . 499 355 490 Average Temperature 160 | . 167 106 190 Received Heat Transfer 342 | . 318 24 . Effects 22 | . 9 2 11 Shutdowns 2 | . . 1 1 Energy Bleed 4 | . 2 1 1 Interference 13 | . 5 . 8 Damage (minor) 1 | . 1 . . Damage (major) 2 | . 1 . 1 Siege Activations . | . . . . Robots Corrupted . | . . . . Combat Hostiles . | . . . . Parts Fried . | . . . . Impact Corruptions . | . . . . Robots Melted . | . . . . Combat Hostiles . | . . . . Parts Melted 8 | . 5 3 . Heat Transferred 3247 | . 1878 703 666 Parts Sabotaged . | . . . . Parts Stolen . | . . . . Parts Stripped . | . . . . Power Chain Reactions . | . . . . Missiles Intercepted . | . . . . Alert | -11 -10 -9 -9 ------- Run | Jun Mat Mat Min Peak Influence 206 | . 206 206 103 Initial 28 | . . 17 28 Average 66 | . 53 78 87 Maximum Alert Level 1 | . 1 1 . Low Security (%) 97 | 100 96 95 100 Level 1 2 | . 3 4 . Level 2 . | . . . . Level 3 . | . . . . Level 4 . | . . . . Level 5 . | . . . . High Security . | . . . . Max Security . | . . . . Squads Dispatched 3 | . 2 1 . Investigation . | . . . . Extermination . | . . . . Reinforcement 3 | . 2 1 . Assault . | . . . . Garrison . | . . . . Intercept . | . . . . Searches Triggered . | . . . . Construction Impeded . | . . . . Haulers Reinforced . | . . . . Active Scanning Responses . | . . . . Cargo Convoy Interrupts . | . . . . Stealth | -11 -10 -9 -9 --------- Run | Jun Mat Mat Min Distress Signals 2 | . 1 1 . Communications Jammed . | . . . . Distress Signals . | . . . . Times Spotted 42 | . 21 12 9 Peak Tracking Total 5 | . 3 5 4 Tactical Retreats 2 | . 1 . 1 Traps | -11 -10 -9 -9 ------- Run | Jun Mat Mat Min Traps Triggered 1 | . . 1 . Indirectly . | . . . . Trap Hack Attempts . | . . . . Triggered . | . . . . Disarmed . | . . . . Reprogrammed . | . . . . Reused . | . . . . Traps Extracted . | . . . . Installed . | . . . . Triggered . | . . . . Machines | -11 -10 -9 -9 ---------- Run | Jun Mat Mat Min Machines Disabled . | . . . . Max in Single Turn . | . . . . Machines Repaired . | . . . . Machines Sabotaged . | . . . . Overloaded Fab Kills . | . . . . Hacking | -11 -10 -9 -9 --------- Run | Jun Mat Mat Min Machines Accessed 7 | . 6 1 . Terminals 4 | . 4 . . Fabricators . | . . . . Repair Stations 1 | . . 1 . Recycling Units 2 | . 2 . . Scanalyzers . | . . . . Garrison Access . | . . . . Total Hacks 18 | . 16 2 . Successful 7 | . 5 2 . Failed 11 | . 11 . . Catastrophic 4 | . 4 . . Database Lockouts . | . . . . Manual . | . . . . Terminals 14 | . 14 . . Fabricators . | . . . . Repair Stations 2 | . . 2 . Recycling Units 2 | . 2 . . Scanalyzers . | . . . . Garrison Access . | . . . . Terminal Hacks 3 | . 3 . . Alert Level 1 | . 1 . . Security Status 1 | . 1 . . Hauler Manifests 1 | . 1 . . Fabricator Hacks . | . . . . Repair Station Hacks 2 | . . 2 . Scan Component 1 | . . 1 . Repair 1 | . . 1 . Recycling Unit Hacks 2 | . 2 . . Report Inventory 2 | . 2 . . Scanalyzer . | . . . . Garrison Access Hacks . | . . . . Unauthorized Hacks . | . . . . Terminals . | . . . . Fabricators . | . . . . Repair Stations . | . . . . Recycling Units . | . . . . Scanalyzers . | . . . . Garrison Access . | . . . . Data Cores Recovered . | . . . . Used . | . . . . Hacking Detections 4 | . 4 . . Full Trace Events 1 | . 1 . . Feedback Events . | . . . . Feedback Blocked . | . . . . Robot Schematics Acquired . | . . . . Robots Built . | . . . . Authchips . | . . . . Time . | . . . . Total Robot Build Rating . | . . . . Part Schematics Acquired . | . . . . Parts Built . | . . . . Authchips . | . . . . Time . | . . . . Total Part Build Rating . | . . . . Parts Repaired 1 | . . 1 . Time 26 | . . 26 . Parts Recycled . | . . . . Recycled Matter . | . . . . Retrieved Matter . | . . . . Retrieved Components . | . . . . Parts Scanalyzed . | . . . . Part Schematics Acquired . | . . . . Parts Damaged . | . . . . Bothacking | -11 -10 -9 -9 ------------ Run | Jun Mat Mat Min Used RIF Installer . | . . . . Robots Hacked . | . . . . Non-combat . | . . . . Combat . | . . . . Robot Hacks Applied . | . . . . Relay Couplers Released . | . . . . Fabnet Peak Effective % . | . . . . Robots Rewired . | . . . . Allies Hacked . | . . . . Hacks Repelled . | . . . . Allies | -11 -10 -9 -9 -------- Run | Jun Mat Mat Min Total Allies . | . . . . Largest Group . | . . . . Highest-Rated Group . | . . . . Highest-Rated Ally . | . . . . Total Orders . | . . . . Ally Attacks . | . . . . Total Damage . | . . . . Kills . | . . . . Allies Corrupted . | . . . . Allies Melted . | . . . . Intel | -11 -10 -9 -9 ------- Run | Jun Mat Mat Min Robot Analysis Total . | . . . . Derelict Logs Recovered . | . . . . Drone Launches . | . . . . Drone Recoveries . | . . . . Exploration | -11 -10 -9 -9 ------------- Run | Jun Mat Mat Min Turns Passed 2125 | 55 1049 576 445 Spaces Moved 1021 | 44 599 203 175 Core 25 | 25 . . . Treads . | . . . . Legs 996 | 19 599 203 175 Wheels . | . . . . Hover . | . . . . Flight . | . . . . Fastest Speed 50 | 50 120 190 190 Average Speed 168 | 90 142 241 190 Slowest Speed 260 | 120 260 260 190 Overloaded Moves . | . . . . Propulsion Burnouts . | . . . . Robots Hopped . | . . . . Cave-ins Triggered . | . . . . Exploration Rate (%) 41 | 3 90 18 53 Regions Visited 3 Branch Regions 1 Pre-discovered Areas . | . . . . Known Exits Taken 1 | . . 1 . Unknown Exits Taken 2 | 1 1 . . Scrap Searched 1 | . . . 1 Spaces Dug . | . . . . Terrain Destroyed . | . . . . Melee . | . . . . Projectile . | . . . . AOE . | . . . . Terrain Rammed . | . . . . Walls Destroyed . | . . . . Machines Disabled . | . . . . Actions | -11 -10 -9 -9 --------- Run | Jun Mat Mat Min Total 1263 | 58 697 255 253 Wait 94 | . 7 29 58 Move 1018 | 43 598 202 175 Hop . | . . . . Pick Up 27 | 8 14 4 1 Fast Attach . | . . . . Attach 15 | 6 6 2 1 Detach . | . . . . Swap 11 | 1 8 1 1 Drop 7 | . 7 . . Fire 90 | . 56 17 17 Melee . | . . . . Ram . | . . . . Kick 1 | . 1 . . Crush . | . . . . Escape Stasis . | . . . . Rewire . | . . . . Trap . | . . . . Miscellaneous . | . . . . Route ------- -11/Junkyard -10/Materials (discovered 5 exits: *Mat x3 / [*Min x2]) -9/Materials -9/Mines (discovered 1 exit: [*Mat]) History --------- Turn | Location | Event 7 | -11/Junkyard | Discovered new exit (range 16) 56 | -11/Junkyard | Entered Materials 328 | -10/Materials | Build established: Mutant 479 | -10/Materials | Discovered new exit (range 9) 556 | -10/Materials | Discovered new exit (range 12) 749 | -10/Materials | Discovered new exit (range 16) 847 | -10/Materials | Discovered new exit (range 16) 991 | -10/Materials | Discovered new exit (range 16) 1105 | -10/Materials | Entered another Materials area 1105 | -9/Materials | Evolved 2 slots: Utility x2 1399 | -9/Materials | Build established: Scavenger-Mutant 1486 | -9/Materials | Repaired Aluminum Leg 1531 | -9/Materials | Discovered new exit (range 16) 1679 | -9/Materials | Identified exit to Mines 1681 | -9/Materials | Entered Mines 1796 | -9/Mines | Discovered new exit (range 10) 1987 | -9/Mines | Assembled infested the area 2083 | -9/Mines | Build established: Mutant 2126 | -9/Mines | Self-destructed Last Messages --------------- 02031_ Signal Interpreter destroyed. 02031_ System corrupted by crushing effect (+5). 02038_ as-57101 destroyed. 02041_ KSD9/YPEO TAMLIWNVZQ6WAGEAKO#JEJZIF::M8E 02041_ Particle Gun destroyed. 02044_ Acquired 10 matter. 02044_ as-53564 destroyed. 02058_ as-16476 suffers critical hit (Burn). 02058_ as-16476 destroyed. 02061_ as-03813 destroyed. 02094_ System corrupted: Heat flow error (+193). 02115_ System corrupted: Heat flow error (+287). 02116_ Overheating: System interference. 02116_ Particle Cannon temporarily disabled. 02116_ Particle Gun temporarily disabled. 02116_ Sensor Array temporarily disabled. 02121_ R-06 Scavenger system corrupted by crushing effect. 02121_ R-06 Scavenger knocked back. 02122_ R-06 Scavenger system terminally corrupted. 02126_ Lgt. Ion Engine destroyed. Map ----- +----------------------------------------------------+ | ?????????????????????????????????????????# | | ??????????????????????????????############ ### | | ??????????????????????????# =[##[#?? | | ??????????????????????????????#########%*%%#?? | | ????????????????????????????????#######=####?? | | ????????????????????????????????# =* #??? | | ????????????????????????????????# " #??? | | ????????????????????????????????# "%" #??? | | ????????????????????????????????# """ """ #??? | | ????????????????????????????????# """ """ #?## | | ????????????????????????????????# """ """ #?# | | ????????????????????????????????# #??# | | ????????????????????????????????### ######??# | | ?????????????????????????????????? ????????# | | ?????????????????????????????????## ????????? | | ??????????????????????????????????# ????????# | | ??????????????????????????????????# #??###### | | ???????????????????????????????## ? | | ?????????????????????????????## ? | | ????????????????????????????## ??###### | | ???????????????????####?????# ???????? | | ???????????????????#$ ?????? #???????? | | ???????????????????# ??????? #???????? | | ???????????????????# a#???????? ##??????? | | ???????????????????# ###???????# ##?????? | | ??????????????????## @ ##???????# ###???? | | ??????????????????# #####????# ##??? | | ??????????????????# #???## #??? | | ??????????????????# ! ### #???#%! % #??? | | ????????????# =% #?# #####= #???? | | ????????????# % | #?# % ##??? | | ????????????# ## ##?# " % #### | | ??????????? $??# #??## #### % # | | ?????????? ????# ##???# #??# | | ??????????"?????# ##????# #??# | | ????????????????## #??????# #??## ## | | ?????????????????####???????# ##### ### | | ???????????????????????????## #?? | | ???????????????????????????# ##?? | | ???????????????????????????# #??# | | ???????????????????????????## ####### | | ????????????????????????????#####?????## | | ???????????????????????????????????????## | | ????????????????????????????????????????##### | | ????????????????????????????????????????????## | | ?????????????????????????????????????????????? | | ?????????????????????????????????????????????? | | ?????????????????????????????????????????????? | | | | | +----------------------------------------------------+ Best States ------------- Heat Dissipation 28 Energy Generation 10 Energy Capacity 250 Matter Stores 300 Matter Capacity 300 Sight Range 16 Robot Scan Range 14 Terrain Scan Density 10 Evasion (%) 55 Item Schematics ----------------- None Robot Schematics ------------------ None Fabricated ------------ Nothing Alien Tech Used ----------------- None Achievements -------------- None Challenges ------------ None Game ------ Seed ChromaticSupersonicStick Manual? 0 Play Time 00:14:10 Cumulative 17.8 hours Start 2023.10.03 @ 16:15:33 End 2023.10.03 @ 16:27:41 Sessions 1 Manual Loads 0 Difficulty Rogue Special Mode None Game No. 38 Rogue 35 Adventurer 3 Explorer 0 Win Type - Total 0 Types 0/0/0/0/0/0/0/0/0 Lore% 18 Gallery% 27 Achievement% 22 Wizard Run 0 Options --------- ASCII 0 Keyboard 0 Movement Mouse Keybinds 0 Fullscreen 2 Font 18/SmallcapsGlow Map View 76x50 Tactical HUD 1 Map Filters NONE Filters NONE Steam 1 RUN: b3072585-2fb4-492c-a627-fddfc8e2908a